bitfinex-derivatives/quotes_SOLF0:USTF0_20250606
["timestamp","ask_amount","ask_price","bid_price","bid_amount"]
[1749238211522,33.64,149.14,149.11,6.701]
[1749238211523,40.3403,149.14,149.11,6.701]
[1749238211719,40.3403,149.14,149.09,7.3269136]
[1749238211919,33.64,149.14,149.09,7.3269136]
[1749238212222,0.05105275,149.13,149.1,0.04280605]
[1749238212616,0.05105275,149.13,149.11,6.7012]
[1749238213124,0.05105275,149.13,149.12,6.7009]
[1749238213315,0.05105275,149.13,149.1,0.04280605]
[1749238213719,0.05105275,149.13,149.11,6.7011]
[1749238214119,0.05105275,149.13,149.11,16.7011]
[1749238214520,0.05105275,149.13,149.11,10.0]
[1749238214914,6.75155275,149.13,149.11,10.0]
[1749238215122,0.05105275,149.13,149.11,16.7011]
[1749238215919,0.05105275,149.13,149.12,6.7009]
[1749238216312,0.05105275,149.13,149.11,10.0]
[1749238216519,0.05105275,149.13,149.11,16.7011]
[1749238216918,0.05105275,149.13,149.11,10.0]
[1749238216919,6.75185275,149.13,149.11,10.0]
[1749238217428,0.05105275,149.13,149.11,16.7013]
[1749238218224,6.75165275,149.13,149.11,16.7013]
[1749238218427,0.05105275,149.13,149.11,16.7013]
[1749238218720,0.05105275,149.13,149.12,6.7009]
[1749238219725,0.05105275,149.13,149.11,16.701]
[1749238220521,0.05105275,149.13,149.12,6.7009]
[1749238220822,0.05105275,149.13,149.11,10.0]
[1749238221022,0.05105275,149.13,149.11,16.7011]
[1749238222023,0.05105275,149.13,149.12,6.7009]
[1749238227118,7.3269136,149.17,149.12,7.3269136]
[1749238227119,40.9469136,149.17,149.12,7.3269136]
[1749238227624,33.62,149.17,149.14,7.3269136]
[1749238228027,33.62,149.2,149.14,7.3269136]
[1749238228226,0.04832943,149.18,149.16,0.04607916]
[1749238228723,0.04832943,149.18,149.17,6.6986]
[1749238229115,33.62,149.2,149.16,7.37299276]
[1749238229334,33.62,149.2,149.19,6.6978]
[1749238229829,33.62,149.2,149.16,7.37299276]
[1749238229830,6.6978,149.19,149.16,14.07189276]
[1749238230029,0.04608244,149.19,149.16,0.04607916]
[1749238230428,6.6983,149.18,149.16,6.74517916]
[1749238230829,6.6983,149.18,149.16,16.74517916]
[1749238232431,6.74408244,149.19,149.17,6.6986]
[1749238232632,6.74408244,149.19,149.16,10.04607916]
[1749238232834,6.6986,149.18,149.16,10.04607916]
[1749238233439,6.74408244,149.19,149.16,16.74497916]
[1749238234436,6.6982,149.18,149.16,16.74497916]
[1749238234827,6.6987,149.17,149.16,10.04607916]
[1749238238430,6.6985,149.18,149.16,10.04607916]
[1749238238843,11.86812574,149.19,149.16,10.04607916]
[1749238239034,6.6987,149.17,149.16,10.04607916]
[1749238239832,6.6984,149.18,149.16,10.04607916]
[1749238240432,7.37299604,149.19,149.16,16.74497916]
[1749238240636,14.07109604,149.19,149.16,10.04607916]
[1749238240833,6.74418244,149.19,149.16,10.04607916]
[1749238241030,6.74418244,149.19,149.17,6.6984]
[1749238241031,0.04608244,149.19,149.17,6.6984]
[1749238241443,0.04608244,149.19,149.17,7.3269136]
[1749238241837,6.74418244,149.19,149.16,10.04607916]
[1749238242343,0.04608244,149.19,149.17,6.6984]
[1749238242538,0.04608244,149.19,149.16,10.04607916]
[1749238243149,0.04608244,149.19,149.18,6.6982]
[1749238247247,0.04608244,149.19,149.18,16.6982]
[1749238268061,419.62,149.25,149.18,23.52883196]
[1749238268261,4.52741375,149.24,149.22,7.3269136]
[1749238268462,33.5,149.25,149.23,6.6957]
[1749238268662,4.52742048,149.24,149.23,6.6957]
[1749238269062,4.52753757,149.24,149.22,6.74499179]
[1749238269264,33.5510655,149.25,149.22,6.74499179]
[1749238269464,11.22344058,149.24,149.22,0.04869179]
[1749238269668,7.3269136,149.23,149.18,10.0]
[1749238269960,7.3269136,149.2,149.18,10.0]
[1749238270165,38.03335505,149.19,149.18,10.0]
[1749238270367,40.1978,149.19,149.18,10.0]
[1749238270668,44.73178701,149.19,149.18,10.0]
[1749238270968,44.73153925,149.19,149.18,10.0]
[1749238271658,44.73155709,149.19,149.18,10.0]
[1749238272065,44.73155382,149.19,149.18,10.0]
[1749238272465,44.73158096,149.19,149.18,6.5053]
[1749238272864,44.73157209,149.19,149.18,6.5053]
[1749238273063,44.73094266,149.19,149.18,6.5053]
[1749238273260,40.1978,149.19,149.18,6.5053]
[1749238273765,44.73095478,149.19,149.18,6.5053]
[1749238274269,44.73094173,149.19,149.18,6.5053]
[1749238275262,44.70334007,149.19,149.18,6.5053]
[1749238275463,44.70257635,149.19,149.18,6.5053]
[1749238275665,40.1978,149.19,149.18,6.5053]
[1749238275866,6.6983,149.18,149.17,0.04790654]
[1749238276169,18.5300035,149.18,149.17,0.04790654]
[1749238277167,14.0252136,149.18,149.17,0.04790654]
[1749238277668,18.51239447,149.18,149.17,0.04790654]
[1749238277873,18.51239447,149.18,149.17,10.04790654]
[1749238278872,18.50956747,149.18,149.17,10.04790654]
[1749238279074,14.0252136,149.18,149.17,10.04790654]
[1749238279580,18.50956845,149.18,149.17,10.04790654]
[1749238280474,11.18265485,149.18,149.17,10.04790654]
[1749238280671,18.50956845,149.18,149.17,10.04790654]
[1749238280865,18.50402256,149.18,149.17,10.04790654]
[1749238281779,14.0252136,149.18,149.17,10.04790654]
[1749238281983,11.79840444,149.18,149.17,10.04790654]
[1749238282173,11.79839995,149.18,149.17,10.04790654]
[1749238282579,18.49669995,149.18,149.17,10.04790654]
[1749238282782,18.4970071,149.18,149.17,10.04790654]
[1749238283278,18.49701977,149.18,149.17,10.04790654]
[1749238283478,18.49703402,149.18,149.17,10.04790654]
[1749238283978,14.0252136,149.18,149.17,10.04790654]
[1749238284177,18.49703638,149.18,149.17,10.04790654]
[1749238284474,18.49705022,149.18,149.17,10.04790654]
[1749238284683,18.49768731,149.18,149.17,10.04790654]
[1749238285180,18.49755803,149.18,149.17,10.04790654]
[1749238285377,14.0252136,149.18,149.17,10.04790654]
[1749238285679,18.50297801,149.18,149.17,10.04790654]
[1749238285982,6.7004,149.14,149.11,2.2149]
[1749238286174,6.7004,149.14,149.1,2.3199]
[1749238286370,6.7004,149.14,149.11,6.7013]
[1749238286973,0.04407323,149.14,149.12,6.7009]
[1749238287172,4.51735924,149.14,149.12,6.7009]
[1749238287582,4.51736039,149.14,149.12,6.7009]
[1749238287775,4.51648665,149.14,149.12,10.0]
[1749238287976,0.04407323,149.14,149.12,10.0]
[1749238288377,4.51636914,149.14,149.12,10.0]
[1749238288573,4.51636189,149.14,149.12,10.0]
[1749238288776,0.04407323,149.14,149.12,16.7008]
[1749238288981,7.3269136,149.13,149.12,10.0]
[1749238289479,18.4889131,149.13,149.12,10.0]
[1749238289677,18.48895148,149.13,149.12,10.0]
[1749238289883,18.4890037,149.13,149.12,10.0]
[1749238290182,18.48025001,149.13,149.12,10.0]
[1749238290586,18.48026571,149.13,149.12,10.0]
[1749238290877,14.0274136,149.13,149.12,10.0]
[1749238291079,6.7005,149.13,149.12,10.0]
[1749238291288,6.74437323,149.14,149.12,10.0]
[1749238291491,11.77975743,149.13,149.12,10.0]
[1749238291692,18.48025743,149.13,149.12,10.0]
[1749238292291,14.0274136,149.13,149.12,10.0]
[1749238293790,7.3269136,149.13,149.12,10.0]
[1749238294296,0.04407323,149.14,149.12,10.0]
[1749238294596,4.474674,149.14,149.12,10.0]
[1749238294794,4.47466233,149.14,149.13,6.7005]
[1749238294986,4.47522494,149.14,149.13,6.7005]
[1749238295890,0.04407323,149.14,149.13,6.7005]
[1749238296891,0.04407323,149.14,149.12,16.7008]
[1749238297090,0.04407323,149.14,149.12,10.0]
[1749238297285,7.37098683,149.14,149.12,10.0]
[1749238297896,0.04407323,149.14,149.12,10.0]
[1749238298196,7.37098683,149.14,149.12,10.0]
[1749238298396,14.07148683,149.14,149.12,10.0]
[1749238298695,18.48774065,149.14,149.12,10.0]
[1749238299496,6.7005,149.13,149.12,10.0]
[1749238300390,11.1388582,149.13,149.12,10.0]
[1749238301393,11.14729133,149.13,149.12,10.0]
[1749238301695,6.7005,149.13,149.12,10.0]
[1749238302100,11.14722505,149.13,149.12,10.0]
[1749238302288,14.0274136,149.13,149.12,10.0]
[1749238303199,7.3269136,149.13,149.12,10.0]
[1749238303494,4.49107104,149.14,149.12,10.0]
[1749238303799,4.49107104,149.14,149.12,16.7007]
[1749238303800,0.04407323,149.14,149.12,16.7007]
[1749238304191,33.68,149.17,149.15,6.6996]
[1749238304396,4.44695814,149.16,149.15,6.6996]
[1749238304796,40.379,149.17,149.14,6.6999]
[1749238304996,4.43085249,149.16,149.14,6.6999]
[1749238305198,4.48226937,149.16,149.14,0.04578463]
[1749238305497,0.0514169,149.16,149.15,6.6996]
[1749238306498,33.68,149.17,149.14,0.04578463]
[1749238306499,33.68,149.17,149.16,6.6992]
[1749238307203,33.68,149.17,149.16,10.0]
[1749238307605,33.68,149.17,149.16,16.6992]
[1749238309104,2.968e-05,149.18,149.17,6.6987]
[1749238309306,2.968e-05,149.18,149.17,14.0256136]
[1749238310599,2.968e-05,149.18,149.16,10.0]
[1749238312107,2.968e-05,149.18,149.16,16.699]
[1749238312698,2.968e-05,149.18,149.17,6.6987]
[1749238313508,112.6538272,149.17,149.03,7.3269136]
[1749238313808,7.3269136,149.11,149.05,4.4246]
[1749238314009,543.03529615,149.18,149.07,7.3269136]
[1749238314010,4.47098273,149.15,149.07,7.3269136]
[1749238314215,40.9869136,149.14,149.07,7.3269136]
[1749238314402,6.7013,149.12,149.09,0.05089525]
[1749238314607,6.74776149,149.12,149.09,0.05089525]
[1749238315008,6.74776149,149.12,149.09,6.75319525]
[1749238315311,7.37337509,149.12,149.09,10.05089525]
[1749238315901,4.5244939,149.11,149.09,10.05089525]
[1749238316106,4.52446597,149.11,149.09,10.05089525]
[1749238316308,4.52449406,149.11,149.09,10.05089525]
[1749238316506,6.7019,149.1,149.09,10.05089525]
[1749238316907,14.0288136,149.1,149.09,10.05089525]
[1749238320416,4.51346892,149.12,149.09,10.05089525]
[1749238320417,14.0285136,149.11,149.09,10.05089525]
[1749238320820,6.7019,149.1,149.09,10.05089525]
[1749238321713,6.7033,149.07,149.05,4.4246]
[1749238321909,47.7102136,149.07,149.05,2.1744]
[1749238322114,41.0069136,149.07,149.05,2.1744]
[1749238322613,41.0069136,149.07,149.01,2.2514]
[1749238322814,0.04393655,149.05,149.03,6.75084489]
[1749238323219,7.37085015,149.05,149.03,0.04594489]
[1749238323420,0.04393655,149.05,149.03,0.04594489]
[1749238323620,0.04393655,149.05,149.03,10.04594489]
[1749238323915,0.04393655,149.05,149.03,16.75084489]
[1749238324115,0.04393655,149.05,149.03,10.04594489]
[1749238325222,0.04393655,149.05,149.03,16.75074489]
[1749238327222,0.04393655,149.05,149.04,6.7046]
[1749238328021,41.0069136,149.07,149.06,6.7037]
[1749238330124,41.0069136,149.07,149.05,6.704]
[1749238331825,41.0069136,149.07,149.06,6.7037]
[1749238332718,33.68,149.07,149.06,6.7037]
[1749238335128,0.04479956,149.08,149.07,6.7032]
[1749238337132,0.04479956,149.08,149.07,16.7032]
[1749238343732,6.74759956,149.08,149.07,10.0]
[1749238344341,0.04479956,149.08,149.07,10.0]
[1749238344944,0.04479956,149.08,149.07,16.7032]
[1749238345241,0.04479956,149.08,149.07,10.0]
[1749238346042,0.04479956,149.08,149.07,16.7032]
[1749238346542,0.04479956,149.08,149.07,10.0]
[1749238347145,7.37171316,149.08,149.07,10.0]
[1749238347644,14.07451316,149.08,149.07,10.0]
[1749238348744,7.37171316,149.08,149.01,11.1571]
[1749238348946,7.3269136,149.05,149.01,4.4512]
[1749238349142,34.48,149.04,149.01,4.4512]
[1749238349448,34.48,149.04,149.03,6.705]
[1749238350749,34.48,149.04,149.03,16.705]
[1749238351249,34.48,149.04,149.03,10.0]
[1749238351953,34.48,149.04,149.03,16.705]
[1749238352952,0.04336917,149.05,149.04,6.7046]
[1749238353148,34.48,149.07,149.03,17.3269136]
[1749238353457,34.48,149.07,149.06,6.7037]
[1749238353643,41.1823,149.1,149.04,7.3269136]
[1749238354154,0.04221214,149.08,149.06,0.04534483]
[1749238354350,0.04221214,149.08,149.07,6.7032]
[1749238355452,6.74501214,149.08,149.06,0.04534483]
[1749238355852,0.04221214,149.08,149.06,0.04534483]
[1749238356756,6.7032,149.07,149.06,0.04534483]
[1749238358058,6.74521214,149.08,149.06,0.04534483]
[1749238358557,4.43754134,149.07,149.06,0.04534483]
[1749238358759,6.74521214,149.08,149.06,0.04534483]
[1749238359052,11.14074236,149.07,149.06,0.04534483]
[1749238359258,18.46765596,149.07,149.06,0.04534483]
[1749238359556,14.0301136,149.07,149.06,0.04534483]
[1749238359858,18.46772523,149.07,149.06,0.04534483]
[1749238360350,14.0301136,149.07,149.06,0.04534483]
[1749238360655,18.47843436,149.07,149.06,0.04534483]
[1749238360852,18.47841916,149.07,149.06,0.04534483]
[1749238361158,4.44830556,149.07,149.06,0.04534483]
[1749238361752,4.45080853,149.07,149.06,0.04534483]
[1749238362057,4.45096894,149.07,149.06,0.04534483]
[1749238362365,7.36912574,149.08,149.06,6.74874483]
[1749238363950,7.36912574,149.08,149.06,0.04534483]
[1749238364156,0.04221214,149.08,149.07,6.7032]
[1749238364556,4.49254334,149.08,149.07,6.7032]
[1749238364758,0.04221214,149.08,149.07,6.7032]
[1749238365059,34.48,149.1,149.06,7.37225843]
[1749238365254,34.48,149.1,149.09,6.7023]
[1749238365759,6.7012,149.12,149.09,6.7023]
[1749238365962,4.44743767,149.11,149.09,6.7023]
[1749238366164,0.05042785,149.11,149.09,6.74807816]
[1749238366460,4.44559647,149.1,149.09,0.04577816]
[1749238367253,4.44559647,149.1,149.09,10.04577816]
[1749238367457,6.75192785,149.11,149.09,10.04577816]
[1749238368163,6.75192785,149.11,149.09,16.74797816]
[1749238369366,6.7019,149.1,149.09,10.04577816]
[1749238369570,4.44459454,149.1,149.09,10.04577816]
[1749238369863,4.44457424,149.1,149.09,10.04577816]
[1749238370467,4.44461834,149.1,149.09,10.04577816]
[1749238370862,4.46636564,149.1,149.09,10.04577816]
[1749238371362,11.16826564,149.1,149.09,10.04577816]
[1749238371560,11.18145788,149.1,149.09,10.04577816]
[1749238372259,18.50872862,149.1,149.09,10.04577816]
[1749238372460,14.0288136,149.1,149.09,10.04577816]
[1749238372662,18.50985861,149.1,149.09,10.04577816]
[1749238373165,18.50985502,149.1,149.09,10.04577816]
[1749238374567,14.0288136,149.1,149.09,10.04577816]
[1749238374766,18.5102838,149.1,149.09,10.04577816]
[1749238376168,14.0288136,149.1,149.09,10.04577816]
[1749238376561,18.50483151,149.1,149.09,10.04577816]
[1749238378169,18.49774418,149.1,149.09,10.04577816]
[1749238378377,14.0288136,149.1,149.09,10.04577816]
[1749238378669,18.49723963,149.1,149.09,10.04577816]
[1749238379372,7.3269136,149.1,149.09,10.04577816]
[1749238379571,11.79581004,149.1,149.09,10.04577816]
[1749238380261,0.05042785,149.11,149.1,6.7019]
[1749238382173,0.05042785,149.11,149.1,16.7019]
[1749238382365,7.3269136,149.15,149.12,6.701]
[1749238382566,4.46638618,149.14,149.1,17.3269136]
[1749238382766,34.28,149.18,149.12,7.3269136]
[1749238383074,34.28,149.18,149.17,6.6987]
[1749238383375,38.74423761,149.18,149.17,6.6987]
[1749238383771,38.74420955,149.18,149.17,6.6987]
[1749238384273,34.28,149.21,149.17,6.6987]
[1749238384769,11.16520212,149.2,149.17,6.6987]
[1749238384974,4.46780212,149.19,149.17,6.6987]
[1749238385171,6.6974,149.2,149.17,6.6987]
[1749238385474,11.19232506,149.19,149.17,6.6987]
[1749238385674,4.49446607,149.18,149.17,6.6987]
[1749238385975,4.4944651,149.18,149.17,6.6987]
[1749238386675,6.6979,149.19,149.17,6.6987]
[1749238387075,7.3269136,149.2,149.16,0.05035595]
[1749238387277,4.48942985,149.19,149.16,0.05035595]
[1749238387472,11.81640242,149.18,149.16,0.05035595]
[1749238387674,41.2787,149.17,149.16,0.05035595]
[1749238387876,45.76818882,149.17,149.16,0.05035595]
[1749238388276,41.2787,149.17,149.16,0.05035595]
[1749238388774,41.2787,149.17,149.1,10.0]
[1749238388775,39.06945226,149.17,149.1,10.0]
[1749238388980,7.3269136,149.15,149.1,16.7016]
[1749238389378,6.7002,149.14,149.1,10.0]
[1749238389579,0.04635706,149.13,149.11,0.04825254]
[1749238389875,14.07407066,149.13,149.11,0.04825254]
[1749238392076,6.701,149.12,149.11,0.04825254]
[1749238392581,11.22746658,149.12,149.11,0.04825254]
[1749238392771,6.701,149.12,149.11,0.04825254]
[1749238393171,11.22748188,149.12,149.11,0.04825254]
[1749238393378,6.701,149.12,149.11,0.04825254]
[1749238393675,11.22739099,149.12,149.11,0.04825254]
[1749238394078,6.701,149.12,149.11,0.04825254]
[1749238394272,14.0279136,149.12,149.11,10.04825254]
[1749238394481,18.5543045,149.12,149.11,10.04825254]
[1749238395281,18.63571428,149.12,149.11,10.04825254]
[1749238395477,18.63558877,149.12,149.11,10.04825254]
[1749238395682,18.6370165,149.12,149.11,10.04825254]
[1749238395980,14.0279136,149.12,149.11,10.04825254]
[1749238396683,11.31010024,149.12,149.11,10.04825254]
[1749238396883,14.0279136,149.12,149.11,10.04825254]
[1749238397483,18.62871901,149.12,149.11,10.04825254]
[1749238397782,14.0279136,149.12,149.11,10.04825254]
[1749238397972,18.62872434,149.12,149.11,10.04825254]
[1749238398581,18.62872701,149.12,149.11,10.04825254]
[1749238398981,14.0279136,149.12,149.11,10.04825254]
[1749238399180,18.62334646,149.12,149.11,10.04825254]
[1749238399384,14.0279136,149.12,149.11,10.04825254]
[1749238399580,18.62224484,149.12,149.11,10.04825254]
[1749238399780,18.62224551,149.12,149.11,10.04825254]
[1749238399981,18.6222455,149.12,149.11,10.04825254]
[1749238400287,14.0279136,149.12,149.11,10.04825254]
[1749238400676,18.61685029,149.12,149.11,10.04825254]
[1749238400878,11.28993669,149.12,149.11,10.04825254]
[1749238401076,14.0279136,149.12,149.11,10.04825254]
[1749238401282,11.91584236,149.12,149.11,10.04825254]
[1749238401676,7.3269136,149.12,149.11,10.04825254]
[1749238401986,11.91579458,149.12,149.11,10.04825254]
[1749238402186,11.91579105,149.12,149.11,10.04825254]
[1749238403087,11.91647212,149.12,149.11,10.04825254]
[1749238403588,11.91647208,149.12,149.11,10.04825254]
[1749238403795,11.91647208,149.12,149.11,16.74965254]
[1749238404089,11.91647768,149.12,149.11,10.04825254]
[1749238404484,7.3269136,149.12,149.11,10.04825254]
[1749238404782,34.62635706,149.13,149.11,10.04825254]
[1749238404977,7.3269136,149.12,149.11,10.04825254]
[1749238405183,7.3269136,149.12,149.05,6.24205119]
[1749238405184,11.91712705,149.12,149.05,6.24205119]
[1749238405387,7.3269136,149.08,149.04,6.6857]
[1749238405585,41.9069136,149.08,149.05,6.7039]
[1749238406188,41.9069136,149.08,149.05,6.7548357]
[1749238406189,41.95165343,149.08,149.05,6.7548357]
[1749238407187,41.95165343,149.08,149.06,6.7036]
[1749238407789,48.65455343,149.08,149.06,6.7036]
[1749238408687,48.65455343,149.08,149.05,16.7548357]
[1749238409791,4.58093149,149.07,149.05,16.7548357]
[1749238409983,4.58168537,149.07,149.05,16.7548357]
[1749238410386,4.58170722,149.07,149.05,10.0509357]
[1749238410580,41.95165343,149.08,149.05,10.0509357]
[1749238410785,11.28520446,149.07,149.05,10.0509357]
[1749238411393,11.28520816,149.07,149.05,10.0509357]
[1749238411892,6.7037,149.06,149.05,10.0509357]
[1749238412598,18.61800466,149.06,149.05,10.0509357]
[1749238412789,18.61805135,149.06,149.05,10.0509357]
[1749238412986,18.61805171,149.06,149.05,10.0509357]
[1749238413190,14.0306136,149.06,149.05,10.0509357]
[1749238413488,11.28991658,149.06,149.05,10.0509357]
[1749238413693,18.61683569,149.06,149.05,10.0509357]
[1749238414592,18.6001326,149.06,149.05,10.0509357]
[1749238414797,18.60013542,149.06,149.05,10.0509357]
[1749238414999,14.0306136,149.06,149.05,10.0509357]
[1749238415398,18.60013542,149.06,149.05,10.0509357]
[1749238415994,14.0306136,149.06,149.05,10.0509357]
[1749238416197,18.60013542,149.06,149.05,10.0509357]
[1749238416397,7.3269136,149.06,149.05,10.0509357]
[1749238416598,11.89643542,149.06,149.05,10.0509357]
[1749238417199,11.88968513,149.06,149.05,16.7550357]
[1749238417400,41.32773983,149.08,149.05,10.0509357]
[1749238417401,4.56277153,149.07,149.05,10.0509357]
[1749238418099,4.56125933,149.07,149.05,10.0509357]
[1749238418302,48.65465343,149.08,149.05,16.7549357]
[1749238418594,4.56125648,149.07,149.05,10.0509357]
[1749238418802,11.26299016,149.07,149.05,10.0509357]
[1749238419310,14.0306136,149.06,149.05,10.0509357]
[1749238421502,6.7037,149.06,149.05,10.0509357]
[1749238421709,11.25148516,149.07,149.05,10.0509357]
[1749238421906,7.3269136,149.06,149.05,10.0509357]
[1749238422720,34.62473983,149.08,149.05,10.0509357]
[1749238422910,41.95165343,149.08,149.05,10.0509357]
[1749238423310,6.7037,149.07,149.05,10.0509357]
[1749238424405,41.95165343,149.08,149.05,10.0509357]
[1749238425018,48.65475343,149.08,149.05,10.0509357]
[1749238425217,41.95165343,149.08,149.05,10.0509357]
[1749238425717,34.62473983,149.08,149.05,10.0509357]
[1749238426112,34.62473983,149.08,149.06,6.7034]
[1749238426411,34.62473983,149.08,149.05,10.0509357]
[1749238427517,34.62473983,149.08,149.06,6.7037]
[1749238428214,34.62473983,149.08,149.05,16.7548357]
[1749238428414,34.62473983,149.08,149.05,10.0509357]
[1749238428804,34.62473983,149.08,149.06,6.7034]
[1749238430718,34.62473983,149.08,149.07,6.7032]
[1749238435118,45.91184673,149.08,149.06,6.7035]
[1749238435319,41.32773983,149.08,149.06,6.7035]
[1749238435519,4.58388573,149.07,149.06,6.7035]
[1749238435724,41.32773983,149.08,149.06,6.7035]
[1749238436116,34.62473983,149.08,149.07,6.7032]
[1749238436523,39.20861837,149.08,149.07,6.7032]
[1749238436722,39.20861089,149.08,149.07,6.7032]
[1749238437616,34.62473983,149.08,149.07,6.7032]
[1749238437821,39.20985418,149.08,149.07,6.7032]
[1749238438322,34.62473983,149.08,149.07,6.7032]
[1749238438922,39.21089913,149.08,149.07,6.7032]
[1749238439225,39.21089999,149.08,149.07,6.7032]
[1749238439524,34.62473983,149.08,149.07,6.7032]
[1749238439721,39.21089793,149.08,149.07,6.7032]
[1749238440027,34.62473983,149.08,149.07,6.7032]
[1749238440527,39.21120662,149.08,149.07,6.7032]
[1749238441326,34.62473983,149.08,149.07,6.7032]
[1749238442118,39.21070249,149.08,149.07,16.7032]
[1749238442321,34.62473983,149.08,149.07,16.7032]
[1749238442830,34.62473983,149.08,149.07,10.0]
[1749238443026,46.53849026,149.08,149.07,10.0]
[1749238443232,46.53851634,149.08,149.07,10.0]
[1749238443428,53.2413164,149.08,149.07,10.0]
[1749238443627,48.65445343,149.08,149.07,10.0]
[1749238443827,53.24131637,149.08,149.07,10.0]
[1749238444527,48.65445343,149.08,149.07,10.0]
[1749238444732,53.24121134,149.08,149.07,10.0]
[1749238444927,53.24118748,149.08,149.07,10.0]
[1749238445135,48.65445343,149.08,149.07,10.0]
[1749238445337,53.24117097,149.08,149.07,10.0]
[1749238446638,48.65445343,149.08,149.07,10.0]
[1749238446838,53.24158984,149.08,149.07,10.0]
[1749238447040,48.65445343,149.08,149.07,10.0]
[1749238447227,53.24158433,149.08,149.07,10.0]
[1749238448140,53.24157333,149.08,149.07,10.0]
[1749238448437,53.24157238,149.08,149.07,10.0]
[1749238448740,39.21185311,149.08,149.07,10.0]
[1749238448934,34.62473983,149.08,149.07,16.7032]
[1749238449133,34.08,149.13,149.07,17.3269136]
[1749238449336,34.08,149.13,149.08,2.176]
[1749238449538,40.7808,149.13,149.08,2.176]
[1749238450038,40.7808,149.13,149.1,6.7015]
[1749238450232,6.7500198,149.12,149.1,6.7015]
[1749238450740,0.0490198,149.12,149.1,6.7015]
[1749238450939,0.0490198,149.12,149.11,6.7014]
[1749238451136,0.0490198,149.12,149.09,0.04516853]
[1749238451536,0.0490198,149.12,149.1,6.7017]
[1749238451942,6.7500198,149.12,149.1,6.7017]
[1749238453342,0.0490198,149.12,149.1,6.7017]
[1749238453543,0.0490198,149.12,149.11,6.7014]
[1749238453743,0.0490198,149.12,149.09,0.04516853]
[1749238454042,6.7503198,149.12,149.09,6.74736853]
[1749238454439,0.0490198,149.12,149.09,0.04516853]
[1749238454743,0.0490198,149.12,149.1,6.7016]
[1749238455338,0.0490198,149.12,149.11,6.7014]
[1749238455539,0.0490198,149.12,149.09,7.37208213]
[1749238455836,0.0490198,149.12,149.11,6.7014]
[1749238457234,0.0490198,149.12,149.11,16.7014]
[1749238458247,6.7500198,149.12,149.11,10.0]
[1749238458437,14.0769334,149.12,149.11,10.0]
[1749238461446,18.61905277,149.12,149.11,10.0]
[1749238462245,18.61989024,149.12,149.11,10.0]
[1749238462447,14.0769334,149.12,149.11,10.0]
[1749238462747,18.62098732,149.12,149.11,10.0]
[1749238463542,18.62099716,149.12,149.11,10.0]
[1749238464049,14.0769334,149.12,149.11,10.0]
[1749238464254,18.62118962,149.12,149.11,10.0]
[1749238464550,18.59950076,149.12,149.11,10.0]
[1749238464849,18.59950078,149.12,149.11,10.0]
[1749238465547,11.27258718,149.12,149.11,10.0]
[1749238465748,18.59950078,149.12,149.11,10.0]
[1749238465954,11.27258718,149.12,149.11,10.0]
[1749238466152,0.0490198,149.12,149.11,10.0]
[1749238466453,4.56839999,149.12,149.11,10.0]
[1749238467450,0.0490198,149.12,149.11,10.0]
[1749238467655,4.57863505,149.12,149.11,10.0]
[1749238467856,0.0490198,149.12,149.11,10.0]
[1749238468059,4.57863661,149.12,149.11,10.0]
[1749238468253,4.57863656,149.12,149.11,10.0]
[1749238468554,0.0490198,149.12,149.11,10.0]
[1749238468752,4.57873749,149.12,149.11,10.0]
[1749238469256,4.58417056,149.12,149.11,10.0]
[1749238469557,0.0490198,149.12,149.11,16.7014]
[1749238469755,4.58417082,149.12,149.11,16.7014]
[1749238470249,0.0490198,149.12,149.11,16.7014]
[1749238470654,4.59021396,149.12,149.11,16.7014]
[1749238470954,4.59021395,149.12,149.11,10.0]
[1749238471358,4.59093396,149.12,149.11,10.0]
[1749238471762,4.59093395,149.12,149.11,10.0]
[1749238472260,4.5893558,149.12,149.11,10.0]
[1749238472671,11.29050127,149.12,149.11,10.0]
[1749238473056,11.29050812,149.12,149.11,10.0]
[1749238473256,6.7500198,149.12,149.11,10.0]
[1749238473556,11.29049791,149.12,149.11,10.0]
[1749238473861,11.29052323,149.12,149.11,10.0]
[1749238474452,11.29039627,149.12,149.11,10.0]
[1749238474963,11.28995985,149.12,149.11,10.0]
[1749238475272,6.7500198,149.12,149.11,10.0]
[1749238475461,11.28996082,149.12,149.11,10.0]
[1749238475963,11.29147114,149.12,149.11,10.0]